bitfinex-derivatives/quotes_SOLF0:USTF0_20250818
["timestamp","ask_amount","ask_price","bid_price","bid_amount"]
[1755488360610,5.4772,182.46,182.45,2.91]
[1755488360814,2.27,182.47,182.45,2.91]
[1755488361114,9.58204901,182.55,182.45,2.91]
[1755488361311,5.4761,182.5,182.45,2.91]
[1755488361519,2.27,182.52,182.45,2.91]
[1755488361718,5.4755,182.52,182.45,2.91]
[1755488362022,2.27,182.54,182.45,2.91]
[1755488362321,2.27,182.54,182.49,2.87]
[1755488362709,7.7449,182.54,182.49,8.3461]
[1755488362909,5.4749,182.54,182.38,9.58204901]
[1755488363316,5.4746,182.55,182.52,2.87]
[1755488363517,2.27,182.56,182.39,2.87]
[1755488363717,2.27,182.54,182.39,2.87]
[1755488363912,2.27,182.54,182.47,2.87]
[1755488364119,2.27,182.52,182.42,2.87]
[1755488364317,2.27,182.52,182.42,8.3484]
[1755488364621,2.27,182.5,182.43,2.87]
[1755488365019,9.58204901,182.55,182.44,5.4777]
[1755488365316,2.27,182.53,182.45,2.87]
[1755488365526,3.9346911,182.52,182.35,2.87]
[1755488365720,5.4763,182.49,182.35,2.87]
[1755488367629,5.4763,182.49,182.44,5.4776]
[1755488367827,2.27,182.53,182.45,2.87]
[1755488368223,2.27,182.53,182.45,8.3475]
[1755488368425,3.9363414,182.52,182.45,8.3475]
[1755488368616,2.27,182.51,182.46,2.87]
[1755488368823,2.27,182.51,182.47,5.4769]
[1755488369218,2.27,182.55,182.49,2.87]
[1755488369421,6.20622525,182.54,182.5,2.87]
[1755488369732,2.27,182.54,182.51,2.87]
[1755488369929,157.61,182.56,182.39,2.87]
[1755488370123,3.9363804,182.55,182.42,9.58204901]
[1755488370324,157.61,182.56,182.43,2.87]
[1755488370521,3.93626283,182.55,182.5,2.87]
[1755488370719,3.93626283,182.55,182.42,9.58204901]
[1755488370720,2.27,182.55,182.42,9.58204901]
[1755488370925,155.34,182.56,182.43,2.87]
[1755488371121,157.61,182.56,182.43,2.87]
[1755488371632,7.7452,182.53,182.49,2.87]
[1755488371827,2.27,182.55,182.38,164.80204901]
[1755488372034,5.4764,182.49,182.46,2.87]
[1755488372231,2.27,182.55,182.44,2.87]
[1755488372426,155.34,182.56,182.35,155.2]
[1755488372427,5.477,182.47,182.35,155.2]
[1755488372627,5.477,182.47,182.45,2.87]
[1755488372833,2.27,182.49,182.45,2.87]
[1755488373232,2.27,182.49,182.46,2.87]
[1755488373534,5.477,182.47,182.46,2.87]
[1755488373943,2.27,182.49,182.46,2.87]
[1755488374330,5.4769,182.48,182.45,2.87]
[1755488374531,5.4769,182.48,182.44,5.4779]
[1755488374831,5.4769,182.48,182.47,2.87]
[1755488375740,7.7463,182.5,182.35,155.2]
[1755488375931,7.7463,182.5,182.36,2.87]
[1755488376131,2.27,182.5,182.36,2.87]
[1755488376432,2.27,182.52,182.46,2.87]
[1755488376636,155.08,182.57,182.46,2.87]
[1755488376832,155.08,182.57,182.48,2.87]
[1755488376833,2.27,182.55,182.48,2.87]
[1755488377438,5.4754,182.53,182.49,5.4763]
[1755488377644,5.4754,182.53,182.5,2.87]
[1755488377840,5.4754,182.53,182.51,2.87]
[1755488378138,5.4755,182.52,182.5,2.87]
[1755488378744,5.4752,182.53,182.5,2.87]
[1755488378929,2.27,182.58,182.5,2.87]
[1755488379128,522.92,182.59,182.39,2.87]
[1755488379129,2.27,182.56,182.39,2.87]
[1755488379331,2.27,182.54,182.39,2.87]
[1755488379533,5.4755,182.52,182.47,5.4767]
[1755488379942,5.4755,182.52,182.5,2.87]
[1755488380741,5.4758,182.51,182.39,2.87]
[1755488380943,154.98,182.58,182.39,2.87]
[1755488381141,2.27,182.56,182.39,2.87]
[1755488381332,5.4771,182.47,182.39,2.87]
[1755488381533,5.4771,182.47,182.44,2.87]
[1755488381737,5.4771,182.47,182.45,2.87]
[1755488382041,5.4771,182.47,182.46,2.87]
[1755488382635,5.4768,182.48,182.46,2.87]
[1755488382842,2.27,182.53,182.45,2.87]
[1755488383033,9.58204901,182.55,182.34,2.87]
[1755488383245,9.58204901,182.47,182.33,0.95386893]
[1755488383443,2.27,182.45,182.26,2.87]
[1755488383647,5.4791,182.4,182.28,2.87]
[1755488383837,5.4791,182.4,182.32,2.87]
[1755488383838,2.27,182.4,182.32,2.87]
[1755488384750,5.4797,182.38,182.32,8.3514]
[1755488384939,5.4797,182.38,182.33,2.87]
[1755488385243,2.27,182.4,182.33,2.87]
[1755488385542,5.4794,182.39,182.33,2.87]
[1755488386241,5.4794,182.39,182.34,5.4808]
[1755488386440,5.4794,182.39,182.36,2.87]
[1755488386650,5.4798,182.38,182.36,2.87]
[1755488386946,5.4798,182.38,182.37,2.87]
[1755488387547,2.27,182.39,182.37,2.87]
[1755488388047,5.4794,182.39,182.37,2.87]
[1755488388735,5.4799,182.38,182.27,0.95415661]
[1755488388941,5.4799,182.38,182.28,2.87]
[1755488389343,5.4799,182.38,182.33,2.87]
[1755488389649,5.4799,182.38,182.27,0.95415661]
[1755488389650,7.7499,182.38,182.35,2.87]
[1755488389949,7.7499,182.38,182.36,2.87]
[1755488390449,2.27,182.38,182.36,2.87]
[1755488391342,2.27,182.4,182.28,2.87]
[1755488391541,164.46204901,182.46,182.28,2.87]
[1755488391542,2.27,182.42,182.28,2.87]
[1755488391738,2.27,182.42,182.36,2.87]
[1755488392443,2.28,182.44,182.36,2.87]
[1755488392749,6.24314583,182.43,182.36,2.87]
[1755488392944,5.4787,182.42,182.27,0.95415661]
[1755488393149,2.28,182.48,182.28,3.14]
[1755488393354,3.96598843,182.47,182.29,9.58204901]
[1755488393548,5.4784,182.43,182.38,5.4794]
[1755488393846,5.4784,182.43,182.4,3.14]
[1755488393847,2.28,182.43,182.4,3.14]
[1755488394047,2.28,182.48,182.3,3.14]
[1755488394350,2.28,182.46,182.3,3.14]
[1755488394650,3.96600663,182.45,182.3,3.14]
[1755488394851,2.28,182.46,182.3,3.14]
[1755488395048,5.477,182.47,182.33,9.58204901]
[1755488395253,3.96875181,182.46,182.34,3.14]
[1755488395545,3.96875181,182.45,182.34,3.14]
[1755488395749,5.477,182.47,182.42,3.14]
[1755488395953,3.97061948,182.46,182.42,3.14]
[1755488396148,154.7,182.5,182.44,5.4778]
[1755488396149,156.98,182.5,182.44,5.4778]
[1755488396353,156.98,182.5,182.42,3.14]
[1755488396354,6.25343234,182.49,182.42,3.14]
[1755488396645,3.97343234,182.48,182.42,3.14]
[1755488396846,3.97343234,182.47,182.43,5.4779]
[1755488397048,154.7,182.5,182.27,10.53620562]
[1755488397252,11.86204901,182.48,182.28,3.14]
[1755488397451,3.97119359,182.47,182.28,3.14]
[1755488397653,2.28,182.45,182.28,3.14]
[1755488397851,2.28,182.43,182.28,3.14]
[1755488398047,5.479,182.41,182.28,3.14]
[1755488400350,2.28,182.47,182.28,3.14]
[1755488400551,2.28,182.45,182.28,3.14]
[1755488400748,2.28,182.43,182.28,3.14]
[1755488401051,2.28,182.41,182.28,3.14]
[1755488401348,2.28,182.41,182.27,0.95415661]
[1755488401349,7.7604,182.36,182.27,0.95415661]
[1755488401550,9.58204901,182.44,182.28,3.14]
[1755488401551,2.28,182.39,182.28,3.14]
[1755488401747,5.4804,182.36,182.31,5.4817]
[1755488401947,2.28,182.35,182.32,3.14]
[1755488402148,2.28,182.43,182.28,3.14]
[1755488402354,2.28,182.41,182.33,3.14]
[1755488402556,2.28,182.39,182.33,3.14]
[1755488402745,3.97619054,182.38,182.33,3.14]
[1755488402959,2.28,182.37,182.34,3.14]
[1755488403154,9.58204901,182.44,182.34,3.14]
[1755488403361,3.9747443,182.43,182.34,3.14]
[1755488403560,2.28,182.41,182.34,3.14]
[1755488403760,3.9747443,182.4,182.27,0.95415661]
[1755488403965,7.7599,182.38,182.35,3.14]
[1755488404167,2.28,182.38,182.35,3.14]
[1755488405267,7.7599,182.38,182.35,3.14]
[1755488405470,9.58204901,182.44,182.35,3.14]
[1755488405669,2.28,182.37,182.35,3.14]
[1755488405870,7.7595,182.39,182.36,3.14]
[1755488406066,2.28,182.39,182.36,3.14]
[1755488406264,2.28,182.38,182.36,3.14]
[1755488406466,7.7599,182.38,182.36,3.14]
[1755488406659,2.28,182.38,182.36,3.14]
[1755488406863,9.58204901,182.44,182.34,5.4808]
[1755488406864,2.28,182.37,182.34,3.14]
[1755488407165,2.28,182.36,182.34,5.4809]
[1755488407360,2.28,182.35,182.33,3.14]
[1755488407556,7.76,182.37,182.34,3.14]
[1755488407760,7.76,182.37,182.35,3.14]
[1755488409058,5.48,182.37,182.35,3.14]
[1755488409458,2.28,182.38,182.35,5.4805]
[1755488409664,2.28,182.43,182.36,3.14]
[1755488409864,9.58204901,182.44,182.36,3.14]
[1755488409865,2.28,182.41,182.36,3.14]
[1755488410067,2.28,182.39,182.37,3.14]
[1755488410358,2.28,182.43,182.35,3.14]
[1755488410562,2.28,182.37,182.35,3.14]
[1755488411170,2.28,182.37,182.27,0.95415661]
[1755488411171,5.48,182.38,182.36,3.14]
[1755488411368,7.76,182.38,182.36,3.14]
[1755488411571,2.28,182.36,182.33,3.14]
[1755488411771,2.28,182.43,182.33,3.14]
[1755488411970,2.28,182.35,182.28,3.14]
[1755488413367,5.4818,182.31,182.27,5.4829]
[1755488413667,2.28,182.39,182.18,0.61379533]
[1755488413970,5.4817,182.32,182.28,3.14]
[1755488414164,2.28,182.34,182.28,3.14]
[1755488414365,7.7611,182.34,182.29,5.4823]
[1755488414570,2.28,182.33,182.31,3.14]
[1755488414963,7.7608,182.35,182.32,3.14]
[1755488415170,2.28,182.34,182.32,3.14]
[1755488415465,9.58204901,182.4,182.28,5.4824]
[1755488415667,2.28,182.31,182.28,5.4824]
[1755488415976,5.4809,182.34,182.29,5.4821]
[1755488416272,2.28,182.33,182.3,3.14]
[1755488416470,2.28,182.33,182.31,3.14]
[1755488417067,7.7612,182.33,182.31,3.14]
[1755488417270,7.7612,182.33,182.28,5.4826]
[1755488417271,127.99975311,182.41,182.28,5.4826]
[1755488417469,2.28,182.39,182.29,3.14]
[1755488417667,5.4814,182.33,182.28,5.4826]
[1755488417973,2.28,182.4,182.28,3.14]
[1755488418162,2.28,182.38,182.28,3.14]
[1755488418366,2.28,182.34,182.28,3.14]
[1755488419269,5.4817,182.32,182.28,3.14]
[1755488419479,2.28,182.33,182.3,3.14]
[1755488419672,2.28,182.4,182.3,3.14]
[1755488419874,5.4803,182.36,182.3,3.14]
[1755488420175,118.4177041,182.41,182.31,5.4817]
[1755488420370,118.4177041,182.41,182.2,10.53684701]
[1755488420371,2.28,182.33,182.3,3.14]
[1755488420674,9.58204901,182.4,182.3,3.14]
[1755488420879,2.28,182.38,182.3,3.14]
[1755488421479,7.7605,182.36,182.32,3.14]
[1755488421776,7.7605,182.36,182.34,3.14]
[1755488422373,5.48,182.37,182.35,3.14]
[1755488422577,7.74,182.37,182.35,3.14]
[1755488422777,118.4177041,182.41,182.2,10.53684701]
[1755488422969,4.01681358,182.4,182.32,3.14]
[1755488423172,4.01681358,182.39,182.32,3.14]
[1755488423375,4.01681358,182.38,182.21,3.14]
[1755488423576,2.26,182.36,182.21,3.14]
[1755488423867,5.4818,182.31,182.27,3.14]
[1755488424474,2.26,182.3,182.21,3.14]
[1755488424868,2.26,182.3,182.25,3.14]
[1755488425277,26.01204901,182.39,182.25,3.14]
[1755488425278,2.26,182.32,182.25,3.14]
[1755488425474,2.26,182.32,182.19,3.14]
[1755488425680,2.26,182.38,182.19,3.14]
[1755488425878,11.76191,182.37,182.32,5.4814]
[1755488426078,4.02191,182.36,182.34,3.14]
[1755488426279,2.26,182.36,182.34,3.14]
[1755488426879,5.48,182.37,182.32,5.4812]
[1755488427187,118.4177041,182.41,182.36,3.14]
[1755488427188,2.26,182.38,182.36,3.14]
[1755488427578,2.26,182.38,182.21,3.14]
[1755488427883,2.26,182.4,182.25,3.14]
[1755488428072,4.02542062,182.39,182.25,3.14]
[1755488428274,2.26,182.4,182.25,3.14]
[1755488428477,9.50586526,182.39,182.34,5.4807]
[1755488428680,2.26,182.39,182.37,3.14]
[1755488428879,2.26,182.37,182.25,3.14]
[1755488429080,2.26,182.35,182.31,3.14]
[1755488429277,2.26,182.35,182.33,3.14]
[1755488429482,2.26,182.38,182.35,3.14]
[1755488429676,5.4803,182.36,182.35,3.14]
[1755488430483,2.26,182.4,182.37,3.14]
[1755488430784,4.0277473,182.39,182.37,3.14]
[1755488430984,2.26,182.4,182.37,3.14]
[1755488431184,6.28867485,182.39,182.25,3.14]
[1755488431384,2.26,182.39,182.25,3.14]
[1755488431587,2.26,182.39,182.35,3.14]
[1755488431784,2.26,182.39,182.36,3.14]
[1755488431979,5.4799,182.38,182.36,3.14]
[1755488432278,5.4799,182.38,182.37,3.14]
[1755488432483,118.4177041,182.41,182.38,3.14]
[1755488432677,5.4796,182.39,182.38,3.14]
[1755488433985,5.4796,182.39,182.24,9.58204901]
[1755488433986,5.4799,182.38,182.25,3.14]
[1755488434178,2.26,182.4,182.25,3.14]
[1755488434385,2.26,182.45,182.25,3.14]
[1755488434582,4.05471104,182.44,182.28,9.58204901]
[1755488434780,2.26,182.52,182.33,3.14]
[1755488435082,2.26,182.49,182.33,3.14]
[1755488435293,4.0548551,182.48,182.33,3.14]
[1755488435476,5.4773,182.46,182.42,3.14]
[1755488435787,5.4773,182.46,182.44,3.14]
[1755488435984,2.26,182.53,182.32,9.58204901]
[1755488436191,2.26,182.51,182.41,3.14]
[1755488436378,2.26,182.48,182.41,3.14]
[1755488436577,9.58204901,182.49,182.41,3.14]
[1755488436578,2.26,182.46,182.41,3.14]
[1755488436777,4.05142731,182.47,182.28,377.96204901]
[1755488436778,2.26,182.44,182.42,3.14]
[1755488437383,5.4782,182.43,182.42,3.14]
[1755488437584,5.4782,182.43,182.4,3.14]
[1755488437779,5.4782,182.43,182.3,3.14]
[1755488437978,2.26,182.52,182.3,3.14]
[1755488438191,162.96204901,182.53,182.3,3.14]
[1755488438192,2.26,182.5,182.3,3.14]
[1755488438484,5.4784,182.43,182.3,3.14]
[1755488438690,2.26,182.45,182.3,3.14]
[1755488438887,9.58204901,182.49,182.3,3.14]
[1755488439089,5.4776,182.45,182.3,3.14]
[1755488439284,2.26,182.48,182.41,3.14]
[1755488439989,4.0477179,182.47,182.41,8.6187]
[1755488440183,5.4775,182.46,182.41,5.4787]
[1755488440382,7.7375,182.46,182.41,5.4787]
[1755488440583,5.4775,182.46,182.45,3.14]
[1755488441291,5.4776,182.45,182.41,5.4787]
[1755488441586,2.26,182.59,182.42,3.14]
[1755488441794,5.4745,182.56,182.42,3.14]
[1755488441984,4.0499851,182.55,182.49,5.4762]
[1755488442192,4.0499851,182.54,182.51,3.14]
[1755488442382,18.69,182.61,182.39,9.58204901]
[1755488442580,24.68610841,182.6,182.45,5.4776]
[1755488442786,2.26,182.58,182.46,3.14]
[1755488442986,2.28,182.56,182.46,3.14]
[1755488443187,2.28,182.54,182.46,3.14]
[1755488443487,2.28,182.54,182.3,16.41]
[1755488443488,2.28,182.52,182.36,3.14]
[1755488443793,5.4776,182.45,182.32,3.14]
[1755488443993,2.28,182.46,182.32,3.14]
[1755488444486,5.4784,182.43,182.32,3.14]
[1755488445292,5.4784,182.43,182.39,3.14]
[1755488445487,5.4784,182.43,182.4,3.14]
[1755488445689,5.4784,182.43,182.29,62.0]
[1755488445690,2.28,182.42,182.32,3.14]
[1755488446088,5.4788,182.41,182.32,3.14]
[1755488446287,9.58204901,182.5,182.32,3.14]
[1755488446491,2.28,182.48,182.32,3.14]
[1755488446688,2.28,182.46,182.32,3.14]
[1755488446895,2.28,182.46,182.4,3.14]
[1755488447093,5.4781,182.44,182.4,3.14]
[1755488447293,2.28,182.43,182.37,5.4799]
[1755488447500,2.28,182.5,182.37,3.14]
[1755488447797,2.28,182.47,182.37,3.14]
[1755488447993,4.00561606,182.46,182.37,3.14]
[1755488448193,2.28,182.44,182.37,3.14]
[1755488448695,2.28,182.42,182.29,3.14]
[1755488448888,9.58204901,182.5,182.38,3.14]
[1755488448889,2.28,182.49,182.38,3.14]
[1755488449089,2.28,182.47,182.38,3.14]
[1755488449302,7.7586,182.42,182.39,3.14]
[1755488449594,2.28,182.42,182.39,3.14]
[1755488449801,9.58204901,182.54,182.32,9.58204901]
[1755488449993,2.28,182.52,182.33,3.14]
[1755488450194,2.28,182.5,182.33,3.14]
[1755488450393,4.00787489,182.49,182.46,5.4772]
[1755488450693,2.28,182.52,182.36,9.58204901]
[1755488450896,4.00882244,182.51,182.49,3.14]
[1755488451088,4.00882244,182.51,182.48,5.4766]
[1755488451089,2.28,182.52,182.5,3.14]
[1755488452100,7.7454,182.53,182.49,5.4763]
[1755488452301,5.4755,182.52,182.5,3.05]
[1755488452997,2.27,182.53,182.41,3.05]
[1755488453394,5.4746,182.55,182.51,5.4757]
[1755488453705,5.4746,182.55,182.53,3.05]
[1755488453999,121.23199002,182.57,182.48,5.4764]
[1755488454205,2.27,182.53,182.41,3.05]
[1755488454503,7.7453,182.53,182.41,3.05]
[1755488454703,2.27,182.55,182.41,3.05]
[1755488455101,121.23199002,182.57,182.5,3.05]
[1755488455302,2.27,182.53,182.45,3.05]
[1755488455503,121.23199002,182.57,182.38,9.58204901]
[1755488455704,2.27,182.49,182.46,3.05]
[1755488455905,2.27,182.56,182.46,3.05]
[1755488456205,2.27,182.54,182.46,3.05]
[1755488456405,3.99924452,182.55,182.46,3.05]
[1755488456406,2.27,182.52,182.46,3.05]
[1755488457108,5.4765,182.49,182.46,3.05]
[1755488457406,2.27,182.53,182.46,3.05]
[1755488457908,2.27,182.53,182.45,3.05]
[1755488459412,5.4758,182.51,182.37,3.05]
[1755488460316,123.50199002,182.57,182.5,5.476]
[1755488460511,123.50199002,182.57,182.51,3.05]
[1755488460808,123.50199002,182.57,182.4,9.58204901]
[1755488460809,3.99809352,182.56,182.4,9.58204901]
[1755488461020,123.50199002,182.57,182.48,3.05]
[1755488461204,5.4738,182.58,182.48,3.05]
[1755488461408,368.28,182.59,182.48,3.05]
[1755488461611,2.27,182.58,182.48,3.05]
[1755488461817,2.27,182.56,182.48,3.05]
[1755488462208,5.4749,182.54,182.49,3.05]
[1755488462408,2.27,182.56,182.49,3.05]
[1755488462805,2.27,182.56,182.41,9.58204901]
[1755488462806,7.7443,182.56,182.42,3.05]
[1755488463411,5.4747,182.55,182.51,5.4756]
[1755488463720,2.27,182.56,182.42,3.05]
[1755488464214,2.27,182.56,182.5,5.4759]
[1755488464417,368.28,182.59,182.41,71.58204901]
[1755488464615,2.27,182.58,182.42,3.05]
[1755488464913,2.27,182.57,182.54,3.05]
[1755488465118,2.27,182.56,182.54,3.05]
[1755488465616,5.4741,182.57,182.54,3.05]
[1755488465914,5.4741,182.57,182.56,3.05]
[1755488466214,7.7442,182.57,182.52,5.4754]
[1755488466417,7.7442,182.57,182.55,3.05]
[1755488467413,5.4736,182.59,182.55,3.05]
[1755488467616,377.01156646,182.69,182.55,3.05]
[1755488467617,368.08,182.69,182.55,3.05]
[1755488467826,3.99001926,182.68,182.55,3.05]
[1755488468015,6.26001926,182.67,182.55,3.05]
[1755488468217,3.99001926,182.66,182.55,3.05]
[1755488468415,5.4721,182.64,182.59,5.4731]
[1755488468622,2.27,182.63,182.61,3.05]
[1755488469007,2.27,182.62,182.45,162.02204901]
[1755488469216,2.27,182.67,182.45,162.02204901]
[1755488469415,2.27,182.65,182.55,3.05]
[1755488469717,3.98581438,182.66,182.45,162.02204901]
[1755488469718,2.27,182.66,182.56,3.05]
[1755488469919,370.35,182.69,182.56,3.05]
[1755488470116,370.35,182.69,182.45,152.44]
[1755488470117,2.27,182.63,182.47,3.05]
[1755488470518,3.98939567,182.62,182.47,3.05]
[1755488470713,3.98911934,182.61,182.48,3.05]
[1755488470920,3.98911934,182.6,182.48,3.05]
[1755488471222,9.58204901,182.63,182.52,5.4755]
[1755488471223,7.744,182.57,182.52,5.4755]
[1755488471417,7.744,182.57,182.55,3.05]
[1755488471724,2.27,182.63,182.56,3.05]
[1755488471908,3.99161883,182.62,182.56,3.05]
[1755488472111,3.99150436,182.61,182.45,152.44]
[1755488472315,2.27,182.59,182.46,3.05]
[1755488472515,3.99217081,182.58,182.46,3.05]
[1755488472721,6.26057133,182.57,182.46,3.05]
[1755488473019,9.58204901,182.62,182.46,3.05]
[1755488473020,2.27,182.55,182.46,3.05]
[1755488473324,3.99027927,182.54,182.41,368.08]
[1755488473514,3.99027927,182.53,182.42,3.05]
[1755488473717,2.27,182.51,182.42,8.5282]
[1755488473928,2.27,182.49,182.42,3.05]
[1755488474114,9.58204901,182.54,182.42,3.05]
[1755488474115,3.99145618,182.48,182.42,3.05]
[1755488474316,2.27,182.45,182.42,3.05]
[1755488474522,2.27,182.51,182.45,3.05]
[1755488474712,3.99234805,182.5,182.35,152.28]
[1755488474916,2.27,182.5,182.35,152.28]
[1755488475117,152.24,182.54,182.48,3.05]
[1755488475317,2.27,182.52,182.48,3.05]
[1755488475716,7.7458,182.52,182.38,9.58204901]
[1755488475914,5.4758,182.52,182.5,3.05]
[1755488476120,154.47,182.61,182.52,3.05]
[1755488476422,2.27,182.59,182.52,3.05]
[1755488476616,5.4746,182.56,182.52,3.05]
[1755488476824,3.99619819,182.55,182.53,3.05]
[1755488477019,2.27,182.56,182.53,3.05]
[1755488477216,3.99612211,182.55,182.53,3.05]
[1755488477419,374.97199639,182.69,182.54,3.05]
[1755488477621,3.09,182.68,182.54,12.63204901]
[1755488477817,3.09,182.68,182.55,3.05]
[1755488478121,3.09,182.67,182.64,3.05]
[1755488478321,118.43542932,182.7,182.58,9.58204901]
[1755488478529,152.18,182.75,182.62,9.58204901]
[1755488478530,3.09,182.73,182.62,9.58204901]
[1755488478724,3.09,182.73,182.63,3.05]
[1755488478919,3.09,182.76,182.63,3.05]
[1755488479120,368.04,182.79,182.63,3.05]
[1755488479323,8.93156646,182.86,182.71,3.05]
[1755488479324,5.93888508,182.86,182.71,3.05]
[1755488479518,3.09,182.85,182.71,3.05]
[1755488479829,3.09,182.87,182.78,3.05]
[1755488480224,3.09,182.87,182.82,5.4665]
[1755488480432,0.95199015,182.93,182.85,3.05]
[1755488480733,3.09,182.92,182.85,3.05]
[1755488481026,152.14,182.94,182.85,3.05]
[1755488481223,3.09,182.88,182.82,3.05]
[1755488481427,152.14,182.94,182.73,15.65469317]
[1755488481428,3.09,182.87,182.84,3.05]
[1755488481631,3.09,182.89,182.81,3.05]
[1755488482234,2.99,182.92,182.81,3.05]
[1755488483029,5.4644,182.9,182.81,3.05]
[1755488483236,2.99,182.89,182.81,3.05]
[1755488484929,5.4663,182.83,182.81,3.05]
[1755488485133,368.99184694,182.95,182.74,3.05]
[1755488485337,15.65469317,182.92,182.74,3.05]
[1755488485527,2.99,182.91,182.74,3.05]
[1755488486036,2.99,182.81,182.74,3.05]
[1755488486231,2.99,182.81,182.71,3.05]
[1755488486631,2.99,182.79,182.71,3.05]
[1755488487131,2.99,182.75,182.64,151.94]
[1755488487330,2.99,182.75,182.69,3.05]
[1755488487727,2.99,182.84,182.65,3.05]
[1755488488235,2.99,182.84,182.68,3.05]
[1755488489023,2.99,182.83,182.68,3.05]
[1755488489425,2.99,182.81,182.68,3.05]
[1755488489629,2.99,182.79,182.68,3.05]
[1755488490136,2.99,182.77,182.64,3.05]
[1755488490637,3.93023522,182.76,182.59,5.4731]
[1755488490834,2.99,182.69,182.66,3.05]
[1755488491132,2.99,182.68,182.64,3.05]
[1755488491332,2.99,182.68,182.6,5.4731]
[1755488491537,2.99,182.68,182.66,3.05]
[1755488491838,8.4607,182.68,182.66,3.05]
[1755488492028,2.99,182.81,182.57,3.05]
[1755488492229,2.99,182.79,182.57,3.05]
[1755488492428,2.99,182.77,182.62,3.05]
[1755488493135,2.99,182.71,182.62,3.05]
[1755488493537,2.99,182.69,182.63,3.05]
[1755488494932,2.99,182.69,182.55,3.05]
[1755488495329,5.4723,182.63,182.55,3.05]
[1755488496042,5.4723,182.63,182.57,3.05]
[1755488496230,5.4719,182.64,182.57,3.05]
[1755488497745,183.84469317,182.8,182.57,3.05]
[1755488497746,2.99,182.65,182.57,3.05]
[1755488498337,5.4722,182.64,182.57,3.05]
[1755488498542,2.99,182.65,182.58,3.05]
[1755488499046,8.4618,182.65,182.58,3.05]
[1755488499547,5.472,182.64,182.58,3.05]
[1755488499741,2.99,182.65,182.58,3.05]
[1755488500440,5.4722,182.63,182.54,151.74]
[1755488500643,8.4622,182.63,182.61,3.05]
[1755488501948,8.4625,182.62,182.55,5.4746]
[1755488502241,5.4725,182.62,182.55,5.4746]
[1755488502440,5.4725,182.62,182.58,3.05]
[1755488502441,8.4625,182.62,182.58,3.05]
[1755488502634,5.4719,182.65,182.59,3.05]
[1755488502836,2.99,182.77,182.61,3.05]
[1755488503036,2.99,182.77,182.62,3.05]